{"text_format":"2","workbook":"xlsx","n_sheets":1,"sheets":["Tabelle1"],"not_rendered":{"charts":0,"images":0,"macros":0,"external_links":0,"defined_names":0,"comments":0,"pivot_tables":0},"unopened":[],"bounds":{"document_bytes":16777216,"sheet_cells":100000,"run_cost":"one","rows_first":2000,"rows_last":500,"rows_between":2000,"halvings":0,"cell_chars":16384,"cell_head_chars":4096},"cells_cut":0,"cells_raw":0,"read":"whole","date_system":"1900"}

{"sheet":"Tabelle1","index":0,"n_rows":123,"n_cols":9,"rows_kept":123,"cut":false,"hidden":false,"merged":[[8,0,8,3],[8,5,8,8],[9,1,9,3],[10,1,10,3],[11,1,11,3],[12,1,12,3],[9,6,9,8],[10,6,10,8],[11,6,11,8],[12,6,12,8],[13,1,13,3],[13,6,13,8],[41,5,41,6],[41,7,41,8],[65,5,65,6],[43,5,43,8],[57,0,57,3],[65,7,65,8],[88,5,88,6],[88,7,88,8],[117,5,117,6],[117,7,117,8],[105,0,105,1],[105,2,105,3],[113,0,113,1],[113,2,113,3],[89,5,89,8],[122,0,122,8],[83,0,83,3],[66,5,66,8],[0,0,0,8],[17,0,17,3],[17,5,17,8],[4,4,4,5],[6,3,6,5],[2,0,2,8],[56,0,56,1],[56,2,56,3],[82,0,82,1],[82,2,82,3],[106,0,106,3],[119,7,119,8],[119,5,119,6]]}
["UMZUGSGUTLISTE"]
[]
["Bitte die hellblauen Felder ausfüllen"]
[]
["Name:",null,null,null,"Vorname:"]
[]
["Tel.:",null,null,"Umzugstermin:"]
[]
["Angaben zu Ihrem alten Wohnort",{"$nulls":4},"Angaben zu Ihrem neuem Wohnort"]
["Straße:",{"$nulls":4},"Straße:"]
["Haus-Nr.",{"$nulls":4},"Haus-Nr."]
["PLZ:",{"$nulls":4},"PLZ:"]
["Ort:",{"$nulls":4},"Ort:"]
["Etage:",{"$nulls":4},"Etage:"]
[]
[null,null,"* RE = Raumeinheiten"]
["Anzahl","Gegenstand","RE","Ges. RE"," ","Anzahl","Gegenstand","RE","Ges. RE"]
["Wohnzimmer ",{"$nulls":4},"Schlafzimmer"]
[null,"Sofa, Couch, Liege, je Sitz",4,{"$f":"SUM(A19*C19)","v":0},null,null,"Schrank bis 2 Türen, nicht zerlegbar",15,{"$f":"SUM(F19*H19)","v":0}]
[null,"Sitzlandschaft (Element), je Sitz",4,{"$f":"SUM(A20*C20)","v":0},null,null,"Schrank zerlegbar je angefang. m",8,{"$f":"SUM(F20*H20)","v":0}]
[null,"Sessel mit Armlehnen",8,0,null,null,"Doppelbett komplett",20,0]
[null,"Sessel ohne Armlehnen",4,0,null,null,"Einzelbett komplett",10,0]
[null,"Stuhl",2,0,null,null,"französisches Bett komplett",15,0]
[null,"Stuhl mit Armlehnen",3,0,null,null,"Bettzeug je Betteinheit",3,0]
[null,"Tisch bis 0,6 m",4,0,null,null,"Nachttisch",2,0]
[null,"Tisch bis 1,0 m",5,0,null,null,"Bettumbau",3,0]
[null,"Tisch bis 1,2 m",6,0,null,null,"Kommode",7,0]
[null,"Tisch über 1,2 m",8,0,null,null,"Frisierkommode (mit Spiegel)",6,0]
[null,"WZ-Schrank zerlegbar je angef. M",8,0,null,null,"Wäschetruhe",3,0]
[null,"Anbauwand b. 38cm Tiefe je angef. m",8,0,null,null,"Stuhl, Hocker",2,0]
[null,"Anbauwand ü. 38cm Tiefe je angef. m",10,0,null,null,"Spiegel über 0,8 m",1,0]
[null,"Bücherregal zerlegbar je angef. m",4,0,null,null,"Deckenlampe",2,0]
[null,"Buffet mit Aufsatz",18,0,null,null,"Fernseher",3,0]
[null,"Buffet ohne Aufsatz",15,0,null,null,"Teppich",3,0]
[null,"Schreibtisch bis 1,6 m",12,0,null,null,"Bilder bis 0,8 m",1,0]
[null,"Schreibtisch über 1,6 m",17,0,null,null,"Bilder über 0,8 m",2,0]
[null,"Standuhr",4,0,null,null,"TV-Schrank",4,0]
[null,"Video / DVD-Player",1,0,null,null,"Kleiderbehältnis",6,0]
[null,"Musikschrank ",4,0,null,null,"Teppich",3,0]
[null,"Stereoanlage",4,0,null,null,"Umzugskarton bis 80 l (gepackt)",1,0]
[null,"Fernseher",3,0,null,null,"Umzugskarton über 80 l (gepackt)",2,0]
[null,"Klavier",15,0,null,"Zwischensumme",null,{"$f":"SUM(I19:I41)","v":0}]
[null,"Flügel",20,0]
[null,"Nähmaschine (Schrank)",4,0,null,"Esszimmer"]
[null,"Stehlampe",2,0,null,null,"Stuhl",2,{"$f":"SUM(F45*H45)","v":0}]
[null,"Brücke",1,0,null,null,"Stuhl mit Armlehnen",3,{"$f":"SUM(F46*H46)","v":0}]
[null,"Deckenlampe",2,0,null,null,"Eckbank je Sitz",2,0]
[null,"Lüster",5,0,null,null,"Tisch bis 0,6 m",4,0]
[null,"Teppich",3,0,null,null,"Tisch bis 1,0 m",5,0]
[null,"Bilder bis 0,8 m",1,0,null,null,"Tisch bis 1,2 m",6,0]
[null,"Bilder über 0,8 m",2,0,null,null,"Tisch über 1,2 m",8,0]
[null,"Sideboard klein",6,0,null,null,"Sekretär",12,0]
[null,"Sideboard groß",12,0,null,null,"Sideboard klein",6,0]
[null,"TV-Schrank",4,0,null,null,"Sideboard groß",12,0]
[null,"Umzugskarton bis 80 l (gepackt)",1,0,null,null,"Hausbar",5,0]
[null,"Umzugskarton über 80 l (gepackt)",2,0,null,null,"Teewagen (nicht zerlegbar)",4,0]
["Zwischensumme",null,{"$f":"SUM(D19:D56)","v":0},null,null,null,"Teppich",3,0]
["Kinderzimmer",{"$nulls":5},"Brücke",1,0]
[null,"Schrank bis 2 Türen nicht zerlegbar",15,{"$f":"SUM(A59*C59)","v":0},null,null,"Deckenlampe",2,0]
[null,"Schrank zerlegbar je angef. m",8,{"$f":"SUM(A60*C60)","v":0},null,null,"Stehlampe",2,0]
[null,"Bett komplett",10,0,null,null,"Vitrine (Glasschrank)",10,0]
[null,"Kinderbett komplett",5,0,null,null,"Bilder bis 0,8 m",1,0]
[null,"Etagenbett komplett",16,0,null,null,"Bilder über 0,8 m",2,0]
[null,"Bettzeug je Betteinheit",3,0,null,null,"Umzugskarton bis 80 l (gepackt)",1,{"$f":"SUM(F64*H64)","v":0}]
[null,"Nachttisch",2,0,null,null,"Umzugskarton über 80 l (gepackt)",2,0]
[null,"Kommode",7,0,null,"Zwischensumme",null,{"$f":"SUM(I45:I65)","v":0}]
[null,"Schreibpult",7,0,null,"Küche"]
[null,"Spielzeugkiste",4,0,null,null,"Buffet mit Aufsätzen",18,{"$f":"SUM(F68*H68)","v":0}]
[null,"Tisch bis 0,6 m",4,0,null,null,"Unterteil je Tür",4,{"$f":"SUM(F69*H69)","v":0}]
[null,"Tisch bis 1,0 m",5,0,null,null,"Oberteil je Tür",4,0]
[null,"Tisch bis 1,2 m",6,0,null,null,"Tisch bis 0,6 m",4,0]
[null,"Tisch über 1,2 m",8,0,null,null,"Tisch bis 1,0 m",5,0]
[null,"Laufgitter",1,0,null,null,"Tisch bis 1,2 m",6,0]
[null,"Stuhl, Hocker",2,0,null,null,"Tisch über 1,2 m",8,0]
[null,"Teppich",3,0,null,null,"Stuhl",2,0]
[null,"Brücke",1,0,null,null,"Eckbank je Sitz",2,0]
[null,"Anbauwand b. 38cm Tiefe je ang. m",8,0,null,null,"Besenschrank",6,0]
[null,"Anbauwand ü. 38cm Tiefe je ang. m",10,0,null,null,"Herd",5,0]
[null,"Deckenlampe",2,0,null,null,"Geschirrspülmaschine",5,0]
[null,"Kleiderbehältnis",6,0,null,null,"Waschmaschine / Trockner",5,0]
[null,"Umzugskarton bis 80 l (gepackt)",1,0,null,null,"Kühlschrank / Truhe bis 120 l",5,0]
[null,"Umzugskarton über 80 l (gepackt)",2,0,null,null,"Kühlschrank / Truhe über 120 l",10,0]
["Zwischensumme",null,{"$f":"SUM(D59:D82)","v":0},null,null,null,"Arbeitsplatte, je angef. m",1,0]
["Weitere Zimmer",{"$nulls":5},"Deckenlampe",2,0]
[null,"Schreibtisch bis 1,6 m",8,{"$f":"SUM(A85*C85)","v":0},null,null,"Teppich",3,0]
[null,"Schreibtisch über 1,6 m",12,{"$f":"SUM(A86*C86)","v":0},null,null,"Mikrowelle",2,0]
[null,"Schreibtischcontainer",3,0,null,null,"Umzugskarton bis 80 l (gepackt)",1,0]
[null,"Schreibtischstuhl",3,0,null,null,"Umzugskarton über 80 l (gepackt)",2,0]
[null,"Winkelkombination",12,0,null,"Zwischensumme",null,{"$f":"SUM(I68:I88)","v":0}]
[null,"Bücherregal zerlegbar je angef. m",4,0,null,"Sonstiges Keller/Speicher/Garten"]
[null,"Aktenschrank je angefangener m",8,0,null,null,"Fahrrad / Moped",5,{"$f":"SUM(F91*H91)","v":0}]
[null,"Sessel ohne Armlehnen",4,0,null,null,"Motorrad",8,{"$f":"SUM(F92*H92)","v":0}]
[null,"Sessel mit Armlehnen",8,0,null,null,"Dreirad / Kinderrad",2,0]
[null,"Tisch bis 0,6 m",4,0,null,null,"Bügelbrett",1,0]
[null,"Tisch bis 1,0 m",5,0,null,null,"Staubsauger",1,0]
[null,"Tisch bis 1,2 m",6,0,null,null,"Autoreifen",1,0]
[null,"Tisch über 1,2 m",8,0,null,null,"Koffer",1,0]
[null,"Computer: PC / EDV - Anlage",5,0,null,null,"Klapptisch / Klappstuhl",2,0]
[null,"Tischkopierer",5,0,null,null,"Kinderwagen",5,0]
[null,"Stehlampe",2,0,null,null,"Leiter je angefangener m",1,0]
[null,"Deckenlampe",2,0,null,null,"Rasenmäher Motor",5,0]
[null,"Teppich",3,0,null,null,"Rasenmäher Hand",2,0]
[null,"Brücke",1,0,null,null,"Schubkarre",4,0]
[null,"Umzugskarton bis 80 l (gepackt)",1,0,null,null,"Werkzeugschrank",2,0]
[null,"Umzugskarton über 80 l (gepackt)",2,0,null,null,"Werkzeugkoffer",1,0]
["Zwischensumme",null,{"$f":"SUM(D85:D105)","v":0},null,null,null,"Ski",2,0]
["Bad",{"$nulls":5},"Schlitten",2,0]
[null,"Truhe, Kommode",7,{"$f":"SUM(A108*C108)","v":0},null,null,"Blumenkübel / Kasten",1,0]
[null,"Kleiderablage",2,0,null,null,"Sonnenschirm",2,0]
[null,"Stuhl, Hocker",2,{"$f":"SUM(A110*C110)","v":0},null,null,"Tischtennisplatte",3,0]
[null,"Toilettenschrank",2,0,null,null,"Mülltonne",2,0]
[null,"Wäschekorb",2,0,null,null,"Regal zerlegbar je angef. m",4,0]
[null,"Deckenlampe",2,0,null,null,"Gartengeräte",2,0]
["Zwischensumme",null,{"$f":"SUM(D108:D113)","v":0},null,null,null,"Sonnenbank",10,0]
[{"$nulls":6},"Gartengrill",4,0]
["Anmerkungen / Sonstiges:",{"$nulls":5},"Umzugskarton bis 80 l (gepackt)",1,0]
[{"$nulls":6},"Umzugskarton über 80 l (gepackt)",2,0]
[{"$nulls":5},"Zwischensumme",null,{"$f":"SUM(I91:I117)","v":0}]
[]
[{"$nulls":5},"Gesamtsumme in m³",null,{"$f":"SUM((H118+H89+H66+C106+C114+C83+C57+H42)/10)","v":0}]
[]
[]
["Umzüge Picalau        www.umzuege-picalau.de       E-Mail: info@ravont.de"]